Entity,Date ,Expense Type,Expense Area,Supplier,Transaction Number, Amount (�) 
South West Yorkshire NHS Foundation Trust,01/06/22,Software License,Trustwide,Trustmarque Solutions Ltd,2342265,1027472.33
South West Yorkshire NHS Foundation Trust,31/05/22,Purchase of Healthcare,AS Collaborative,Bradford District Care Nhs Foundation Trust,202193,981334
South West Yorkshire NHS Foundation Trust,01/05/22,Purchase of Healthcare,AS Collaborative,Cheswold Park Hospital,4416,595417.31
South West Yorkshire NHS Foundation Trust,26/05/22,Purchase of Healthcare,AS Collaborative,Cheswold Park Hospital,4407,591789.3
South West Yorkshire NHS Foundation Trust,22/06/22,Purchase of Healthcare,AS Collaborative,Nottinghamshire Healthcare Nhs Trust,1000056115,572761
South West Yorkshire NHS Foundation Trust,17/06/22,Purchase of Healthcare,AS Collaborative,Leeds & York Partnership Nhs Foundation Trust,997491,555257.5
South West Yorkshire NHS Foundation Trust,17/06/22,Purchase of Healthcare,AS Collaborative,Leeds & York Partnership Nhs Foundation Trust,997492,555257.5
South West Yorkshire NHS Foundation Trust,17/06/22,Purchase of Healthcare,AS Collaborative,Leeds & York Partnership Nhs Foundation Trust,997493,555257.5
South West Yorkshire NHS Foundation Trust,01/06/22,Purchase of Healthcare,AS Collaborative,Cygnet Health Care Ltd,CYGWYS22,544330.43
South West Yorkshire NHS Foundation Trust,28/06/22,Purchase of Healthcare,AS Collaborative,Bradford District Care Nhs Foundation Trust,202319,490667
South West Yorkshire NHS Foundation Trust,01/07/22,Purchase of Healthcare,AS Collaborative,Waterloo Manor Ltd,HO NHS LS 262,400288.74
South West Yorkshire NHS Foundation Trust,01/06/22,Purchase of Healthcare,AS Collaborative,Partnerships In Care Ltd,D510006962,331974.45
South West Yorkshire NHS Foundation Trust,26/05/22,Purchase of Healthcare,AS Collaborative,Cheswold Park Hospital,4415,219332.93
South West Yorkshire NHS Foundation Trust,01/06/22,Purchase of Healthcare,AS Collaborative,Partnerships In Care Ltd,D510006955,201358.79
South West Yorkshire NHS Foundation Trust,26/05/22,Purchase of Healthcare,AS Collaborative,Cheswold Park Hospital,4396,165123.3
South West Yorkshire NHS Foundation Trust,01/06/22,Purchase of Healthcare,AS Collaborative,Rotherham Doncaster & South Humber Mental Health Nhs Foundation Trust,0000092370,134623.94
South West Yorkshire NHS Foundation Trust,01/06/22,Software License,Trustwide,Trustmarque Solutions Ltd,2342264,133799.26
South West Yorkshire NHS Foundation Trust,26/05/22,Purchase of Healthcare,AS Collaborative,Cheswold Park Hospital,4408,128100
South West Yorkshire NHS Foundation Trust,10/06/22,Staff Recharge,Wakefield,Nhs Wakefield Ccg,7016401822,108896
South West Yorkshire NHS Foundation Trust,06/06/22,IT Services,Trustwide,Daisy Corporate Services,3I491394,90250
South West Yorkshire NHS Foundation Trust,31/03/22,Drugs,Trustwide,Lloyds Pharmacy Ltd,107092,76155.54
South West Yorkshire NHS Foundation Trust,17/05/22,Drugs,Trustwide,Bradford Hospitals Nhs Trust,321256,75256.59
South West Yorkshire NHS Foundation Trust,30/04/22,Drugs,Barnsley,Lloyds Pharmacy Ltd,107663,70640.88
South West Yorkshire NHS Foundation Trust,28/02/22,Drugs,Barnsley,Lloyds Pharmacy Ltd,106545,69590.02
South West Yorkshire NHS Foundation Trust,02/04/22,Utilities,Trustwide,Virgin Media Business Ltd,938244076,62929.07
South West Yorkshire NHS Foundation Trust,17/06/22,Purchase of Healthcare,Forensics,Leeds & York Partnership Nhs Foundation Trust,997485,61721.75
South West Yorkshire NHS Foundation Trust,17/06/22,Purchase of Healthcare,Forensics,Leeds & York Partnership Nhs Foundation Trust,997489,61721.75
South West Yorkshire NHS Foundation Trust,17/06/22,Purchase of Healthcare,Forensics,Leeds & York Partnership Nhs Foundation Trust,997490,61721.75
South West Yorkshire NHS Foundation Trust,31/05/22,Drugs,Barnsley,Lloyds Pharmacy Ltd,108186,55259.17
South West Yorkshire NHS Foundation Trust,30/04/22,Furniture & Fittings,Trustwide,P Tate Ltd,143 2022,42057.72
South West Yorkshire NHS Foundation Trust,11/05/22,Mobile Phones,Trustwide,Vodafone Ltd,101214102,38307.83
South West Yorkshire NHS Foundation Trust,16/05/22,Drugs,Trustwide,Nhs Business Services Authority,1000073267,37843.67
South West Yorkshire NHS Foundation Trust,06/05/22,Purchase of Healthcare,Trustwide,Partnerships In Care Ltd,D510006866EPC,36080
South West Yorkshire NHS Foundation Trust,06/05/22,Purchase of Healthcare,Trustwide,Partnerships In Care Ltd,D510006869EPC,36080
South West Yorkshire NHS Foundation Trust,31/05/22,Purchase of Healthcare,Trustwide,Nouvita Ltd,8653,35712
South West Yorkshire NHS Foundation Trust,31/05/22,Purchase of Healthcare,Trustwide,Nouvita Ltd,8655,35712
South West Yorkshire NHS Foundation Trust,31/05/22,Purchase of Healthcare,Trustwide,Nouvita Ltd,8673,35448
South West Yorkshire NHS Foundation Trust,01/06/22,Utilities,Trustwide,Edf Energy Customers Ltd,000012395714,35011.2
South West Yorkshire NHS Foundation Trust,22/04/22,Drugs,Trustwide,Nhs Business Services Authority,1000072933,34270.07
South West Yorkshire NHS Foundation Trust,28/06/22,Purchase of Healthcare,Trustwide,Waterloo Manor Ltd,HO NHS LS UPLIFT,31907.37
South West Yorkshire NHS Foundation Trust,31/05/22,Furniture & Fittings,Trustwide,P Tate Ltd,168 2022,31317.15
South West Yorkshire NHS Foundation Trust,24/05/22,Insurance,Trustwide,Willis Ltd,10958GP22000003PRM,30675.24
South West Yorkshire NHS Foundation Trust,10/06/22,Purchase of Healthcare,Trustwide,Elysium Healthcare Ltd,ARB03970,29903.34
South West Yorkshire NHS Foundation Trust,24/06/22,Staff Recharge,Barnsley,Barnsley Hospital Nhs Foundation Trust,6025714,28725.62
South West Yorkshire NHS Foundation Trust,31/05/22,Utilities,Trustwide,Totalenergies Gas & Power Ltd,26743227022,27352.22
South West Yorkshire NHS Foundation Trust,27/05/22,Utilities,Trustwide,Edf Energy Customers Ltd,000012347220,26971.15
South West Yorkshire NHS Foundation Trust,25/05/22,Furniture & Fittings,Trustwide,Pineapple Contracts,SI78932,25797.6
